bitfinex-derivatives/quotes_ETHF0:USTF0_20250616
["timestamp","ask_amount","ask_price","bid_price","bid_amount"]
[1750050868801,0.6232,2574.7,2574.6,6.17756036]
[1750050869811,1.3114,2574.9,2574.8,0.77661]
[1750050869999,1.9346,2574.9,2574.8,0.77661]
[1750050870205,2.71118,2574.9,2574.8,0.77661]
[1750050870713,1.9346,2574.9,2574.8,0.77661]
[1750050871211,2.71118,2574.9,2574.8,0.77661]
[1750050874111,0.77661,2574.8,2574.7,0.77662]
[1750050874315,2.7112,2574.9,2574.8,0.77661]
[1750050874811,0.77661,2574.8,2574.7,0.77662]
[1750050877116,1.9346,2574.9,2574.8,0.77661]
[1750050878204,3.2078,2575.3,2575.0,0.77652]
[1750050878415,0.6377,2575.2,2575.0,0.77652]
[1750050878607,0.77658,2574.9,2574.8,0.77659]
[1750050879214,0.77659,2574.9,2574.8,0.7766]
[1750050880017,0.77657,2575.0,2574.9,0.77657]
[1750050883718,2.05705,2575.1,2574.7,0.6467]
[1750050883912,2.05705,2575.1,2575.0,0.77655]
[1750050884111,0.77655,2575.0,2574.9,0.77656]
[1750050884311,0.77657,2575.0,2574.9,0.77658]
[1750050886017,0.77659,2574.9,2574.8,0.77659]
[1750050886325,0.77661,2574.8,2574.7,1.42332]
[1750050886620,1.44831,2574.8,2574.7,1.42332]
[1750050887522,1.44831,2574.8,2574.7,0.77662]
[1750050891326,0.73907406,2574.8,2574.7,0.77662]
[1750050891818,0.73907406,2574.8,2574.7,1.46142]
[1750050892219,0.6717,2574.8,2574.7,1.46142]
[1750050892621,3.2078,2575.3,2574.7,0.6848]
[1750050892920,0.6225,2575.1,2575.0,0.77655]
[1750050893323,0.6225,2575.1,2575.0,1.43945]
[1750050894523,0.6225,2575.1,2574.8,0.7766]
[1750050894524,0.77658,2574.9,2574.8,0.7766]
[1750050895128,5.35467,2575.0,2574.9,0.77658]
[1750050896526,0.77659,2574.9,2574.8,0.77659]
[1750050896722,4.5781,2575.0,2574.7,1.54931036]
[1750050897025,0.77658,2574.9,2574.8,0.77659]
[1750050897223,5.35467,2575.0,2574.8,0.77661]
[1750050897427,5.35467,2575.0,2574.9,0.77658]
[1750050897627,2.14687,2575.0,2574.9,0.77658]
[1750050897828,0.6225,2575.1,2575.0,0.77655]
[1750050898623,10.13525,2575.4,2575.3,0.77646]
[1750050898927,0.78220694,2575.6,2575.4,0.77643]
[1750050899135,0.78220694,2575.6,2575.5,0.7764]
[1750050899336,0.78220694,2575.6,2575.4,1.43581]
[1750050899934,0.78220694,2575.6,2575.5,0.7764]
[1750050900229,0.00582694,2575.6,2575.5,0.7764]
[1750050900536,0.78219694,2575.6,2575.5,0.7764]
[1750050901138,0.00582694,2575.6,2575.5,0.7764]
[1750050901429,0.00582694,2575.6,2575.5,6.15685076]
[1750050901632,0.6522,2576.0,2575.5,12.80965076]
[1750050901633,1.45006,2576.0,2575.5,12.80965076]
[1750050901830,0.6738,2576.0,2575.9,0.77628]
[1750050902036,3.2078,2576.1,2576.0,0.77625]
[1750050903730,3.2078,2576.1,2575.8,0.65882694]
[1750050903731,3.98402,2576.1,2575.9,0.77627]
[1750050903931,0.77625,2576.0,2575.9,0.77627]
[1750050904227,3.98404,2576.1,2575.9,0.77627]
[1750050904427,4.05141406,2576.1,2575.9,0.77627]
[1750050904735,3.27517406,2576.1,2576.0,0.77625]
[1750050905232,3.27517406,2576.1,2575.8,0.00582694]
[1750050905436,0.77628,2575.9,2575.8,0.00582694]
[1750050905833,2.75848,2575.9,2575.8,0.00582694]
[1750050906138,1.9822,2575.9,2575.8,0.78213694]
[1750050906432,0.6652,2575.9,2575.8,0.78213694]
[1750050906632,1.44148,2575.9,2575.8,0.78213694]
[1750050908029,1.44148,2575.9,2575.8,0.00582694]
[1750050908235,1.44148,2575.9,2575.8,0.78213694]
[1750050908836,0.6652,2575.9,2575.8,0.78213694]
[1750050909037,1.44148,2575.9,2575.8,0.78213694]
[1750050909835,1.44148,2575.9,2575.8,0.00582694]
[1750050910541,2.77008,2575.9,2575.8,0.00582694]
[1750050919647,2.83745406,2575.9,2575.8,0.00582694]
[1750050920549,2.83745406,2575.9,2575.8,0.78213694]
[1750050920748,2.77008,2575.9,2575.8,0.78213694]
[1750050921247,2.77008,2575.9,2575.8,0.00582694]
[1750050921547,2.77008,2575.9,2575.8,0.78213694]
[1750050922049,1.44148,2575.9,2575.8,0.78213694]
[1750050922448,0.77628,2575.9,2575.8,0.78213694]
[1750050922945,0.6261,2576.0,2575.9,0.77628]
[1750050923152,1.40235,2576.0,2575.9,0.77628]
[1750050924159,3.2078,2576.1,2576.0,0.77625]
[1750050924360,3.2078,2576.1,2575.8,2.77181694]
[1750050924556,0.77628,2575.9,2575.8,0.00582694]
[1750050925055,0.77643,2575.5,2575.3,0.6309]
[1750050925257,1.43123,2575.4,2575.3,1.40734]
[1750050925651,1.43123,2575.4,2575.3,0.6309]
[1750050925847,0.77649,2575.2,2575.1,0.6286]
[1750050926357,0.77648,2575.3,2575.2,0.77648]
[1750050926858,1.43124,2575.4,2575.3,0.77646]
[1750050927150,3.2078,2575.5,2575.4,0.77643]
[1750050927356,3.9842,2575.5,2575.4,0.77643]
[1750050929256,3.2078,2575.5,2575.4,0.77643]
[1750050929660,0.77639,2575.6,2575.5,0.7764]
[1750050930558,28.9354,2575.8,2575.2,5.38045076]
[1750050930764,0.77641,2575.5,2575.4,0.77641]
[1750050932260,5.2064,2575.8,2575.2,8.65474076]
[1750050932457,0.77634,2575.7,2575.6,0.77637]
[1750050933159,2.17265076,2575.7,2575.4,0.6218]
[1750050933364,0.7764,2575.5,2575.4,0.6218]
[1750050933562,0.77638,2575.6,2575.4,0.6218]
[1750050933767,0.77638,2575.6,2575.5,0.77638]
[1750050934264,3.894,2575.8,2575.4,2.79445076]
[1750050934466,4.67032,2575.8,2575.7,0.77634]
[1750050935859,4.67033,2575.8,2575.7,0.77634]
[1750050936767,0.77636,2575.7,2575.6,0.77636]
[1750050937169,4.67032,2575.8,2575.7,0.77634]
[1750050937570,0.77634,2575.7,2575.6,0.77635]
[1750050939472,1.46252,2575.8,2575.7,0.77634]
[1750050940287,0.77635,2575.7,2575.6,0.77635]
[1750050941587,1.46253,2575.8,2575.7,0.77634]
[1750050941783,0.6862,2575.8,2575.4,3.49362729]
[1750050941984,0.77635,2575.7,2575.6,0.77635]
[1750050942588,0.77637,2575.6,2575.5,0.77637]
[1750050942786,0.77636,2575.7,2575.6,0.77636]
[1750050943188,1.46253,2575.8,2575.7,0.77634]
[1750050943882,0.77635,2575.7,2575.6,0.77635]
[1750050944186,0.84372406,2575.7,2575.6,0.77635]
[1750050944689,0.06737406,2575.7,2575.6,0.77635]
[1750050945978,0.7763,2575.9,2575.8,0.77631]
[1750050946782,2.75627,2576.0,2575.9,0.77628]
[1750050947183,0.77629,2575.9,2575.8,0.77629]
[1750050947688,1.98,2576.0,2575.9,0.77628]
[1750050947889,2.75625,2576.0,2575.9,0.77628]
[1750050952291,0.6476,2576.0,2575.9,0.77628]
[1750050953185,0.77628,2575.9,2575.8,3.98409]
[1750050953587,0.77633,2575.8,2575.7,0.77633]
[1750050954282,2.0982,2575.9,2575.8,0.77631]
[1750050955989,1.3219,2575.9,2575.8,0.77631]
[1750050956991,1.3219,2575.9,2575.8,3.98411]
[1750050957193,0.6476,2576.0,2575.9,0.77628]
[1750050957790,2.02151,2576.2,2575.8,6.03025076]
[1750050957998,2.70391,2576.2,2576.1,0.77622]
[1750050959094,0.6824,2576.2,2576.1,0.77622]
[1750050959299,1.45859,2576.2,2576.1,0.77622]
[1750050959798,0.6824,2576.2,2576.1,0.77622]
[1750050960191,1.45859,2576.2,2576.1,0.77622]
[1750050960393,0.6824,2576.2,2576.1,0.77622]
[1750050960594,1.45859,2576.2,2576.1,0.77622]
[1750050960799,0.6824,2576.2,2576.1,0.77622]
[1750050962107,0.00582694,2576.3,2576.2,0.77619]
[1750050964398,0.073201,2576.3,2576.2,0.77619]
[1750050964794,0.718401,2576.3,2576.2,0.77619]
[1750050965199,1.494561,2576.3,2576.2,0.77619]
[1750050965504,0.718401,2576.3,2576.2,0.77619]
[1750050967597,1.494561,2576.3,2576.2,0.77619]
[1750050968002,2.89105176,2576.3,2575.9,2.22992729]
[1750050968205,0.77621,2576.2,2576.1,0.7762]
[1750050968506,2.12561,2576.2,2576.1,0.7762]
[1750050969103,0.77622,2576.1,2576.0,6.91523]
[1750050969304,0.77622,2576.1,2576.0,0.77623]
[1750050970700,2.1256,2576.2,2576.1,0.77622]
[1750050973204,0.77623,2576.1,2576.0,0.77625]
[1750050974712,2.12561,2576.2,2576.1,0.77622]
[1750050974911,0.77621,2576.2,2576.1,0.77622]
[1750050976010,1.42720694,2576.3,2576.2,0.77619]
[1750050976611,4.63500694,2576.3,2576.2,0.77619]
[1750050976905,0.00582694,2576.3,2576.2,0.77619]
[1750050977111,0.00582694,2576.3,2576.2,1.43319]
[1750050977503,0.073201,2576.3,2576.2,3.60584076]
[1750050977705,3.2078,2576.7,2576.6,0.77607]
[1750050977914,3.2078,2576.7,2576.6,2.94872076]
[1750050978212,3.2078,2576.7,2576.6,0.77607]
[1750050978609,3.2078,2576.7,2576.6,9.08272076]
[1750050979210,3.2078,2576.7,2576.6,10.98872076]
[1750050979600,0.00582694,2576.9,2576.8,0.77601]
[1750050981607,0.00582694,2576.9,2576.8,2.94866076]
[1750050982011,0.6686,2577.3,2577.2,0.77589]
[1750050982212,0.77582,2577.5,2577.3,0.77584]
[1750050982410,0.6247,2577.6,2577.5,0.77579]
[1750050982806,3.2078,2577.7,2577.6,0.77577]
[1750050983506,2.07611,2577.8,2577.6,0.77577]
[1750050983710,2.07611,2577.8,2577.7,0.77574]
[1750050984312,1.3004,2577.8,2577.6,1.42365]
[1750050984513,2.07612,2577.8,2577.7,0.77574]
[1750050984716,0.77572,2577.8,2577.6,1.42365]
[1750050985218,0.63052694,2577.9,2577.6,1.42365]
[1750050985219,0.77574,2577.7,2577.6,1.42365]
[1750050985415,0.77573,2577.8,2577.6,1.42365]
[1750050985618,0.77574,2577.7,2577.6,0.6479]
[1750050986615,0.7758,2577.5,2577.4,6.7982]
[1750050986811,0.7758,2577.5,2577.4,6.132]
[1750050987214,2.7091,2577.5,2577.4,6.132]
[1750050989218,2.7091,2577.5,2577.4,6.90783]
[1750050989819,0.6849,2577.5,2577.4,6.90783]
[1750050990315,3.98353,2577.8,2577.4,6.132]
[1750050990514,0.77575,2577.7,2577.6,0.77576]
[1750050990711,0.6831,2577.8,2577.5,4.4763]
[1750050991018,1.45882,2577.8,2577.7,0.77574]
[1750050991420,0.77575,2577.7,2577.6,0.77575]
[1750050991621,0.77577,2577.6,2577.5,5.25208]
[1750050991918,0.77576,2577.7,2577.6,0.77577]
[1750050992221,0.6831,2577.8,2577.7,0.77574]
[1750050992519,0.00582694,2577.9,2577.8,0.77571]
[1750050992721,0.78150694,2577.9,2577.8,0.77571]
[1750050993221,0.78150694,2577.9,2577.5,5.7662]
[1750050993222,0.77573,2577.8,2577.7,0.77572]
[1750050993513,0.77575,2577.7,2577.6,0.77575]
[1750050993711,0.77575,2577.7,2577.6,6.90675]
[1750050995726,0.77575,2577.7,2577.6,6.90677]
[1750050996018,2.94840076,2577.7,2577.6,6.131]
[1750050996422,4.30210076,2577.7,2577.6,6.90677]
[1750050996622,0.77575,2577.7,2577.6,0.77577]
[1750050996823,4.05090406,2577.8,2577.7,0.77574]
[1750050998026,0.77574,2577.7,2577.6,0.77574]
[1750050998926,0.77577,2577.6,2577.5,2.04427]
[1750050999427,0.77577,2577.6,2577.5,1.2685]
[1750050999628,0.77577,2577.6,2577.5,2.0443]
[1750050999828,0.77577,2577.6,2577.5,1.2685]
[1750051000125,1.43747,2577.6,2577.5,1.2685]
[1750051000327,1.43747,2577.6,2577.5,2.0443]
[1750051001130,1.43747,2577.6,2577.5,1.2685]
[1750051001427,1.43747,2577.6,2577.5,2.0443]
[1750051001428,0.6617,2577.6,2577.5,2.0443]
[1750051001827,1.43747,2577.6,2577.5,2.0443]
[1750051002930,0.77582,2577.5,2577.4,6.90181]
[1750051005134,4.05090406,2577.8,2577.7,0.77574]
[1750051006131,3.27517406,2577.8,2577.7,0.77574]
[1750051006630,4.05088406,2577.8,2577.7,0.77574]
[1750051007132,3.27517406,2577.8,2577.4,9.3338]
[1750051007435,0.77576,2577.7,2577.6,0.77575]
[1750051008131,5.37209406,2577.8,2577.7,0.77574]
[1750051008526,0.77574,2577.7,2577.6,0.77574]
[1750051008735,5.37209406,2577.8,2577.7,0.77574]
[1750051009236,0.77574,2577.7,2577.6,0.77574]
[1750051009435,5.37210406,2577.8,2577.7,0.77574]
[1750051009637,2.16430406,2577.8,2577.7,0.77574]
[1750051009937,2.09693,2577.8,2577.7,0.77574]
[1750051010636,0.78151694,2577.9,2577.8,0.77571]
[1750051011938,0.00582694,2577.9,2577.8,0.77571]
[1750051021254,2.04221,2578.2,2578.1,0.77562]
[1750051021255,0.6827,2578.2,2578.1,0.77562]
[1750051022646,0.00582694,2578.4,2578.3,0.77556]
[1750051022949,0.68852694,2578.4,2578.3,0.77556]
[1750051023150,0.00582694,2578.4,2578.3,0.77556]
[1750051023356,0.00582694,2578.4,2578.3,1.42906]
[1750051024355,3.2078,2578.8,2578.7,0.77544]
[1750051024555,3.98321,2578.8,2578.7,0.77544]
[1750051025455,0.77544,2578.7,2578.6,0.77544]
[1750051025956,0.6219,2578.7,2578.6,0.77544]
[1750051027349,3.98323,2578.8,2578.7,0.77544]
[1750051028155,3.2078,2578.8,2578.7,0.77544]
[1750051028453,3.98321,2578.8,2578.7,0.77544]
[1750051029259,5.35701,2578.8,2578.7,0.77544]
[1750051030261,8.69278076,2578.8,2578.3,1.42905]
[1750051030459,2.17265076,2578.4,2578.3,7.55305]
[1750051030859,2.82905076,2578.4,2578.3,7.55305]
[1750051031162,0.6564,2578.4,2578.3,7.55305]
[1750051036062,0.00582694,2579.0,2578.4,1.93875]
[1750051036364,0.00582694,2579.0,2578.9,0.77538]
[1750051036551,0.00582694,2579.0,2578.8,0.646]
[1750051036753,0.78117694,2579.0,2578.8,6.89539]
[1750051036954,2.01442694,2579.0,2578.8,6.89539]
[1750051037151,2.01442694,2579.0,2578.7,0.6269]
[1750051037152,2.01442694,2579.0,2578.9,0.77538]
[1750051037566,0.68012694,2579.0,2578.9,0.77538]
[1750051037962,0.00582694,2579.0,2578.9,0.77538]
[1750051038957,0.00582694,2579.0,2578.9,2.94803076]
[1750051039365,0.073201,2579.0,2578.9,2.94803076]
[1750051039964,0.6743,2579.3,2579.2,0.77529]
[1750051040163,3.2078,2579.6,2579.5,0.7752]
[1750051041367,0.00581542,2579.8,2579.7,0.77513]
[1750051041562,8.9811729,2580.0,2579.9,0.77507]
[1750051041757,8.9811729,2580.0,2579.9,34.41328438]
[1750051041957,4.5228529,2580.0,2579.9,48.74772076]
[1750051042169,0.77479,2580.9,2579.9,49.28725076]
[1750051042363,0.93248603,2581.0,2580.7,3.98261]
[1750051042564,1.9723,2580.9,2580.8,0.77479]
[1750051042863,0.93248603,2581.0,2580.7,10.10162]
[1750051043063,1.3266,2580.9,2580.7,10.10162]
[1750051043268,0.15772603,2581.0,2580.9,0.77477]
[1750051043666,3.65697679,2581.0,2580.9,6.118]
[1750051043865,5.07743679,2581.0,2580.9,6.118]
[1750051044168,5.07743679,2581.0,2580.7,10.10063]
[1750051044363,4.30267679,2581.0,2580.8,0.77478]
[1750051044559,5.07742679,2581.0,2580.7,10.10062]
[1750051044765,0.77478,2580.9,2580.7,10.10062]
[1750051044961,1.3266,2580.9,2580.8,0.7748]
[1750051045165,0.15772603,2581.0,2580.8,0.77478]
[1750051045470,0.15772603,2581.0,2580.8,0.7748]
[1750051045674,1.48622603,2581.0,2580.7,3.2078]
[1750051045972,3.65887679,2581.0,2580.8,6.118]
[1750051046273,0.6212,2580.9,2580.8,6.118]
[1750051046472,1.9497,2580.9,2580.8,6.118]
[1750051046871,0.77483,2580.7,2580.6,0.00581542]
[1750051047068,2.94748076,2580.7,2580.6,6.12281542]
[1750051047268,0.77483,2580.7,2580.6,6.12281542]
[1750051047868,2.94748076,2580.7,2580.6,0.00581542]
[1750051048164,0.77483,2580.7,2580.6,0.00581542]
[1750051048765,2.94748076,2580.7,2580.6,0.00581542]
[1750051049467,0.77489,2580.5,2580.4,3.2078]
[1750051050178,2.06089,2580.6,2580.4,3.2078]
[1750051050474,1.286,2580.6,2580.5,0.77489]
[1750051050777,0.77481,2580.8,2580.4,3.2078]
[1750051050967,1.9072,2580.9,2580.7,3.2078]
[1750051051170,0.7748,2580.8,2580.7,3.2078]
[1750051051475,2.0511,2580.8,2580.7,3.2078]
[1750051052472,1.2763,2580.8,2580.7,3.98264]
[1750051052975,0.15772603,2581.0,2580.7,3.2078]
[1750051053179,0.15772603,2581.0,2580.9,0.77478]
[1750051053478,0.15772603,2581.0,2580.9,9.06343076]
[1750051053880,0.15772603,2581.0,2580.9,6.89078]
[1750051055579,2.26927603,2581.0,2580.9,6.89078]
[1750051056082,2.26927603,2581.0,2580.9,0.77478]
[1750051056385,2.26927603,2581.0,2580.8,6.88978]
[1750051056591,0.77481,2580.8,2580.7,3.2078]
[1750051056884,0.77486,2580.7,2580.5,0.77488]
[1750051057081,2.11166,2580.7,2580.6,0.77487]
[1750051057484,1.3368,2580.7,2580.6,0.77487]
[1750051057693,1.3368,2580.7,2580.6,3.98267]
[1750051058080,2.11164,2580.7,2580.6,3.98267]
[1750051058777,2.11164,2580.7,2580.6,3.2078]
[1750051058984,0.77493,2580.4,2580.3,3.98274]
[1750051059686,0.77491,2580.5,2580.4,0.77491]
[1750051059985,0.77493,2580.4,2580.3,10.09773]
[1750051060187,3.33053,2580.4,2580.3,10.09773]
[1750051060491,2.5556,2580.4,2580.3,10.09773]
[1750051061585,3.33053,2580.4,2580.3,10.09773]
[1750051062186,2.5556,2580.4,2580.3,10.09773]
[1750051062988,3.33053,2580.4,2580.3,10.09773]
[1750051063885,3.33053,2580.4,2580.3,10.09776]
[1750051064191,3.33053,2580.4,2580.3,3.98276]
[1750051064380,3.33053,2580.4,2580.3,10.09776]
[1750051064986,2.5556,2580.4,2580.3,10.09776]
[1750051065185,3.33053,2580.4,2580.3,10.09776]
[1750051068192,2.5556,2580.4,2580.3,10.09776]
[1750051068891,3.33053,2580.4,2580.3,10.09776]
[1750051070289,3.33053,2580.4,2580.3,11.24147905]
[1750051070686,2.5556,2580.4,2580.3,11.24147905]
[1750051070887,3.39790406,2580.4,2580.3,11.24147905]
[1750051071689,2.62297406,2580.4,2580.3,11.24147905]
[1750051071892,3.39790406,2580.4,2580.3,11.24147905]
[1750051072394,2.62297406,2580.4,2580.3,11.24147905]
[1750051073596,3.39790406,2580.4,2580.3,11.24147905]
[1750051074495,2.62297406,2580.4,2580.3,11.24147905]
[1750051074989,46.36218697,2580.4,2579.7,1.54169125]
[1750051075195,5.14564,2579.8,2579.2,0.77528]
[1750051075391,3.55689718,2579.7,2578.9,44.0078]
[1750051075592,1.74958718,2579.6,2579.4,0.77521]
[1750051075905,1.74960718,2579.5,2579.3,0.77526]
[1750051076198,0.97439718,2579.4,2579.2,0.78109542]
[1750051076398,1.3275,2579.3,2579.2,0.78109542]
[1750051076699,3.07715718,2579.3,2579.2,0.00581542]
[1750051078300,2.10276,2579.3,2579.2,0.00581542]
[1750051080701,1.2507,2579.7,2579.2,5.37834632]
[1750051080897,0.98419722,2579.6,2579.5,3.2078]
[1750051081099,2.02584,2579.7,2579.6,0.77517]
[1750051081294,3.00998546,2579.7,2579.6,0.77517]
[1750051081499,4.36448546,2579.7,2579.6,0.77517]
[1750051082408,3.38034,2579.7,2579.6,0.77517]
[1750051083905,3.38034,2579.7,2579.5,3.98298]
[1750051084402,3.38034,2579.7,2579.6,0.77517]
[1750051085099,2.6052,2579.7,2579.6,0.77517]
[1750051086006,2.02584,2579.7,2579.6,0.77517]
[1750051086306,2.09321406,2579.7,2579.6,0.77517]
[1750051086509,3.44771406,2579.7,2579.6,0.77517]
[1750051087203,2.67257406,2579.7,2579.6,0.77517]
[1750051088304,0.06737406,2579.7,2579.6,0.77517]
[1750051088911,1.38297406,2579.7,2579.6,0.77517]
[1750051090206,2.15811406,2579.7,2579.6,0.77517]
[1750051090712,1.38297406,2579.7,2579.6,0.77517]
[1750051090909,2.15811406,2579.7,2579.6,0.77517]
[1750051091205,1.38297406,2579.7,2579.4,6.296]
[1750051091408,0.7752,2579.5,2579.4,6.296]
[1750051091615,0.77525,2579.4,2579.2,3.98887542]
[1750051091809,2.02856,2579.3,2579.2,3.98887542]
[1750051092422,1.2533,2579.3,2579.2,0.78110542]
[1750051093008,2.02856,2579.3,2579.2,0.78110542]
[1750051093213,2.02856,2579.3,2579.2,0.00581542]
[1750051094616,3.00646292,2579.3,2579.2,0.00581542]
[1750051096317,0.77535,2579.0,2578.9,47.097]
[1750051096619,0.77543,2578.8,2578.7,0.77543]
[1750051096809,0.77543,2578.8,2578.7,0.77544]
[1750051097008,0.77543,2578.8,2578.7,41.57544]
[1750051097208,0.6286,2578.8,2578.7,41.57544]
[1750051097413,1.40401,2578.8,2578.7,40.8]
[1750051097618,2.73471,2578.8,2578.7,40.8]
[1750051099710,0.77547,2578.6,2578.5,0.00581542]
[1750051099913,0.77547,2578.6,2578.5,0.78131542]
[1750051100216,0.77547,2578.6,2578.5,40.80581542]
[1750051100616,0.77547,2578.6,2578.5,41.58131542]
[1750051100818,0.77547,2578.6,2578.5,40.80581542]
[1750051101222,0.77547,2578.6,2578.5,41.58131542]
[1750051101409,0.77547,2578.6,2578.5,40.80581542]
[1750051103518,0.77547,2578.6,2578.5,41.58131542]
[1750051103718,0.77547,2578.6,2578.5,40.80581542]
[1750051104216,1.9593,2578.8,2578.5,40.80581542]
[1750051104413,1.9593,2578.8,2578.7,2.9401709]
[1750051104815,1.9593,2578.8,2578.7,0.77544]
[1750051105220,2.73471,2578.8,2578.7,0.77544]
[1750051105623,0.6484,2578.9,2578.8,0.77541]
[1750051105817,1.43733,2579.1,2579.0,0.77535]
[1750051106014,0.77535,2579.0,2578.9,0.77536]
[1750051106520,0.662,2579.1,2578.8,6.43]
[1750051106719,0.77535,2579.0,2578.9,41.57535]
[1750051107321,0.77535,2579.0,2578.9,40.8]
[1750051107520,0.77535,2579.0,2578.9,41.57538]
[1750051107825,0.662,2579.1,2579.0,0.77535]
[1750051108121,3.8695,2579.3,2579.0,24.151]
[1750051108327,3.8453,2579.6,2579.1,2.1647309]
[1750051108519,0.6375,2579.6,2579.5,3.2078]
[1750051108730,1.41269,2579.6,2579.5,40.8]
[1750051109322,0.77517,2579.6,2579.5,40.8]
[1750051109529,4.1881009,2579.6,2579.5,40.8]
[1750051109724,7.3959009,2579.6,2579.5,40.8]
[1750051110120,8.37222906,2579.6,2579.5,40.8]
[1750051110821,0.77524,2579.4,2579.2,0.77527]
[1750051111017,0.77525,2579.4,2579.2,0.77527]
[1750051111221,0.77526,2579.3,2579.2,41.57527]
[1750051111423,0.77526,2579.3,2579.2,40.8]
[1750051113032,6.1477909,2579.3,2579.2,40.8]
[1750051113235,3.91672707,2579.3,2579.2,40.8]
[1750051113729,3.14146707,2579.3,2579.0,31.38233]
[1750051114031,1.987,2579.2,2579.1,0.77532]
[1750051114831,2.76229,2579.2,2579.0,31.38234]
[1750051115532,0.06737406,2579.3,2579.2,0.77529]
[1750051116129,0.06737406,2579.3,2579.2,41.57529]
[1750051116535,0.06737406,2579.3,2579.2,72.15929]
[1750051117337,0.06737406,2579.3,2579.2,65.73029]
[1750051118639,0.6845,2579.7,2579.6,0.77517]
[1750051129848,2.02847406,2579.7,2579.6,0.77517]
[1750051131648,2.02847406,2579.7,2579.6,41.57517]
[1750051132147,5.3725309,2580.5,2579.8,1.93773]
[1750051132445,1.8978,2580.2,2580.1,0.77502]
[1750051133254,0.6337,2580.2,2580.1,3.98282]
[1750051136153,0.00581542,2580.4,2580.1,29.4475309]
[1750051136350,0.00581542,2580.4,2580.3,0.77496]
[1750051136543,0.00581542,2580.4,2580.3,7.14396]
[1750051142452,0.00581542,2580.4,2580.3,0.77496]
[1750051142653,0.00581542,2580.4,2580.3,31.20296]
[1750051143254,0.00581542,2580.4,2580.3,33.3676909]
[1750051143454,1.3568,2580.7,2580.6,0.77487]
[1750051143749,0.15772603,2581.0,2580.6,29.4205309]
[1750051143951,2.13487,2581.3,2580.9,2.1647309]
[1750051144147,2.1647309,2581.2,2581.1,0.77472]
[1750051144349,3.5249309,2581.2,2581.1,41.57472]
[1750051144543,1.3602,2581.2,2581.1,41.57472]
[1750051144952,1.3602,2581.2,2581.1,0.77472]
[1750051146649,9.568,2581.2,2580.9,0.78058542]
[1750051146843,0.77475,2581.0,2580.9,0.00581542]
[1750051147246,7.06285,2581.0,2580.9,0.00581542]
[1750051147951,0.77484,2580.8,2580.7,0.77484]
[1750051148350,2.9395309,2580.9,2580.8,0.77481]
[1750051149047,7.9395109,2580.9,2580.8,0.77481]
[1750051149251,0.77483,2580.8,2580.7,0.77482]
[1750051149960,0.77484,2580.7,2580.6,41.58066542]
[1750051150150,1.43444,2580.7,2580.6,40.80581542]
[1750051150355,0.6596,2580.7,2580.6,41.58068542]
[1750051151353,0.6596,2580.7,2580.6,0.00581542]
[1750051151354,1.43444,2580.7,2580.6,0.00581542]
[1750051151559,3.5991709,2580.7,2580.6,0.00581542]
[1750051151758,8.5991709,2580.7,2580.6,0.00581542]
[1750051152758,0.77496,2580.3,2580.2,3.98277]
[1750051153255,0.06737406,2580.4,2580.3,0.77496]
[1750051153446,0.06737406,2580.4,2580.2,3.98277]
[1750051153652,0.77497,2580.3,2580.1,40.8]
[1750051153955,0.77497,2580.3,2580.2,0.77497]
[1750051154162,0.06737406,2580.4,2580.1,40.8]
[1750051154163,0.84231406,2580.4,2580.3,0.77496]
[1750051154556,0.06737406,2580.4,2580.3,0.77496]
[1750051155056,0.06737406,2580.4,2580.3,3.98276]
[1750051155261,0.06737406,2580.4,2580.3,10.34976]
[1750051155656,0.06737406,2580.4,2580.3,3.98276]
[1750051155856,0.06737406,2580.4,2580.3,10.34976]
[1750051156063,0.06737406,2580.4,2580.2,24.044]
[1750051156064,0.84232406,2580.4,2580.2,6.367]
[1750051156259,0.06737406,2580.4,2580.3,0.77496]
[1750051156561,0.84233406,2580.4,2580.2,7.14197]
[1750051156965,0.84233406,2580.4,2580.3,0.77496]
[1750051157957,0.06737406,2580.4,2580.3,0.77496]
[1750051158359,0.84230406,2580.4,2580.3,0.77496]
[1750051158863,0.84230406,2580.4,2580.2,6.367]
[1750051158864,0.77496,2580.3,2580.2,7.14197]
[1750051159065,0.77499,2580.2,2580.0,9.54761542]
[1750051159264,0.77502,2580.1,2580.0,0.78085542]
[1750051159465,1.42062,2580.1,2580.0,0.00581542]
[1750051159865,2.39348984,2580.1,2580.0,0.00581542]
[1750051160766,2.39348984,2580.1,2580.0,0.78086542]
[1750051160968,3.68378984,2580.1,2580.0,0.00581542]
[1750051166467,0.06737406,2580.4,2580.3,0.77496]
[1750051166668,0.06737406,2580.4,2580.3,3.98276]
[1750051166969,3.27517406,2580.4,2580.2,0.77499]
[1750051167266,1.9125,2580.3,2580.1,0.775]
[1750051167464,1.9125,2580.3,2580.0,0.00581542]
[1750051167769,2.68748,2580.3,2580.1,0.77501]
[1750051168067,1.9125,2580.3,2580.2,0.77499]
[1750051168570,5.04872978,2580.3,2580.0,0.00581542]
[1750051168773,4.0772309,2580.3,2580.0,0.00581542]
[1750051168968,4.8522009,2580.3,2580.1,0.77501]
[1750051170473,0.6693,2580.2,2580.1,0.77501]
[1750051170671,1.939,2580.2,2580.1,0.77501]
[1750051170970,1.939,2580.2,2580.0,0.78084542]
[1750051171167,2.71399,2580.2,2580.0,0.78084542]
[1750051171570,1.939,2580.2,2580.1,0.77502]
[1750051171871,1.939,2580.2,2580.0,0.78083542]
[1750051172473,0.06737406,2580.4,2580.3,0.77496]
[1750051172769,0.84230406,2580.4,2580.3,0.77496]
[1750051173065,1.33707406,2580.4,2580.3,0.77496]
[1750051173272,2.30852947,2580.4,2580.3,0.77496]
[1750051173766,3.08345947,2580.4,2580.3,0.77496]
[1750051174472,2.30852947,2580.4,2580.3,0.77496]
[1750051174673,3.08345947,2580.4,2580.3,0.77496]